bitfinex/quotes_ETHUSD_20260208
["timestamp","ask_amount","ask_price","bid_price","bid_amount"]
[1770519253011,0.04043864,2086.2,2085.6,0.002]
[1770519253813,2.17368124,2086.6,2085.6,0.94887296]
[1770519254040,2.17366307,2086.6,2085.6,0.94887296]
[1770519254240,2.13321876,2086.6,2085.7,2.1455113]
[1770519254443,0.93509221,2086.5,2085.7,2.1455113]
[1770519254644,0.93509221,2086.5,2085.8,0.001]
[1770519254845,0.97553085,2086.4,2085.8,0.001]
[1770519255146,0.93509221,2086.6,2085.8,0.001]
[1770519255915,0.04043864,2086.7,2085.8,0.94787296]
[1770519256426,1.23854711,2086.7,2085.9,1.19852341]
[1770519256628,2.17363932,2086.7,2085.9,1.19852341]
[1770519256826,0.97553085,2086.4,2086.0,0.001]
[1770519257245,0.97553085,2086.4,2085.6,4.79575747]
[1770519257246,0.97553085,2086.4,2085.6,0.001]
[1770519257435,0.97553085,2086.4,2085.8,1.19955608]
[1770519258264,0.97553085,2086.4,2085.8,0.001]
[1770519259965,0.97553085,2086.4,2086.0,0.001]
[1770519260167,2.17376798,2086.4,2086.0,0.001]
[1770519260372,0.97553085,2085.8,2085.1,0.003]
[1770519260666,1.23884805,2086.1,2085.2,0.94687296]
[1770519260880,1.23885031,2086.1,2085.2,0.94687296]
[1770519262267,0.97553085,2085.8,2085.1,1.20198326]
[1770519262453,0.04043864,2085.5,2085.1,0.003]
[1770519262661,0.04043864,2085.1,2084.9,0.001]
[1770519262841,1.23919819,2085.5,2084.9,0.001]
[1770519262842,0.93509221,2085.4,2084.9,0.001]
[1770519263044,0.04043864,2085.2,2084.9,0.001]
[1770519263243,1.23919819,2085.5,2084.7,1.19919918]
[1770519263435,0.04043864,2085.5,2084.7,0.94687296]
[1770519263758,0.97553085,2085.5,2084.6,1.19922865]
[1770519264134,0.97553085,2085.5,2083.4,0.1024]
[1770519264135,0.93509221,2085.1,2083.4,0.1024]
[1770519264335,0.93509221,2085.4,2084.6,1.19922789]
[1770519264562,0.93509221,2085.4,2084.4,0.94687296]
[1770519264745,2.13373055,2085.7,2084.4,0.94687296]
[1770519264964,0.1024,2086.0,2084.4,0.94687296]
[1770519265153,2.23599815,2086.0,2084.4,0.94687296]
[1770519265671,0.97553085,2086.0,2084.4,0.94687296]
[1770519265877,0.04043864,2086.0,2084.4,0.94687296]
[1770519266072,0.93509221,2086.2,2084.4,0.9373116]
[1770519266252,2.13344854,2086.2,2084.5,0.94687296]
[1770519266446,0.04043864,2086.1,2084.5,0.94687296]
[1770519266748,0.04043864,2086.1,2084.7,0.94687296]
[1770519267465,0.93509221,2086.2,2084.7,0.94687296]
[1770519267665,0.04043864,2086.3,2084.9,0.94687296]
[1770519267879,0.04043864,2086.4,2084.9,0.94687296]
[1770519268501,0.93509221,2086.5,2084.9,0.94687296]
[1770519268798,2.17387252,2086.3,2085.1,0.94687296]
[1770519268973,2.17383045,2086.3,2085.1,0.94687296]
[1770519269361,0.04043864,2086.2,2085.1,0.94687296]
[1770519269966,0.97553085,2086.2,2085.1,0.94687296]
[1770519270216,0.04043864,2085.3,2083.6,2.3132112]
[1770519270375,0.04043864,2085.3,2084.4,1.19935419]
[1770519270563,0.04043864,2084.5,2084.3,1.19940499]
[1770519270897,0.04043864,2084.5,2083.9,4.79850732]
[1770519270898,0.04043864,2085.0,2084.0,1.19961612]
[1770519271104,2.17441383,2085.3,2084.1,0.94687296]
[1770519271306,1.3011913,2085.5,2084.1,0.94687296]
[1770519271601,1.3011602,2085.5,2084.1,0.94687296]
[1770519271803,1.3011602,2085.5,2084.1,0.84687296]
[1770519271998,2.23625241,2085.5,2084.5,0.001]
[1770519272410,0.97553085,2085.3,2084.5,0.001]
[1770519273180,2.17445433,2085.3,2084.5,0.001]
[1770519273977,0.93509221,2085.3,2084.5,0.001]
[1770519274312,2.17441066,2085.3,2084.5,0.001]
[1770519274904,1.19878766,2085.5,2084.5,0.001]
[1770519275074,0.1024,2085.8,2084.6,2.1461438]
[1770519275275,1.19858088,2085.8,2084.6,2.1461438]
[1770519275511,1.19858088,2085.8,2084.6,1.19927084]
[1770519275811,1.19858088,2085.8,2084.7,0.92719825]
[1770519276317,0.04043864,2085.6,2084.7,0.92719825]
[1770519276514,0.04043864,2085.6,2084.6,1.19927084]
[1770519276814,1.01299566,2086.0,2084.7,0.92719825]
[1770519276995,0.04043864,2085.9,2084.7,0.92719825]
[1770519277187,1.23901609,2085.9,2084.8,2.12635404]
[1770519277698,1.23896288,2085.9,2084.9,0.92719825]
[1770519279510,1.23896288,2085.9,2085.0,1.19904076]
[1770519279709,0.04043864,2085.6,2085.0,1.19904076]
[1770519279906,0.04043864,2085.6,2084.9,1.19906324]
[1770519280071,1.23896288,2085.9,2084.9,1.19906324]
[1770519280277,0.91059566,2085.8,2084.9,1.19906324]
[1770519280705,0.91059566,2085.6,2084.9,1.19906324]
[1770519281705,0.91059566,2085.6,2084.6,5.72424689]
[1770519281706,0.91059566,2085.6,2084.7,1.19921331]
[1770519282457,0.9510343,2085.6,2084.7,1.19921331]
[1770519282946,0.9510343,2085.9,2084.8,0.92719825]
[1770519283151,0.91059566,2085.8,2084.8,0.92719825]
[1770519283346,0.04243864,2086.2,2084.8,0.92719825]
[1770519283516,0.002,2086.2,2085.0,0.92719825]
[1770519283713,0.91259566,2086.2,2085.0,0.92719825]
[1770519285537,0.04043864,2086.1,2085.0,0.92719825]
[1770519286139,1.23886009,2086.1,2085.1,1.19898326]
[1770519286338,0.9510343,2086.1,2085.1,1.19898326]
[1770519286642,0.002,2085.4,2085.1,2.12618151]
[1770519286846,0.04043864,2086.1,2085.2,0.92719825]
[1770519287050,0.002,2085.6,2085.2,0.92719825]
[1770519288064,0.002,2085.6,2085.3,2.12606651]
[1770519288938,0.002,2086.2,2085.3,2.12606651]
[1770519289139,0.9510343,2086.1,2085.3,1.19886826]
[1770519290361,0.9510343,2086.1,2085.1,4.79547307]
[1770519292041,0.91059566,2086.1,2085.1,4.79547307]
[1770519292548,0.002,2086.2,2085.2,0.92719825]
[1770519292743,0.91259566,2086.2,2085.2,0.92719825]
[1770519293058,0.9530343,2086.2,2085.2,0.92719825]
[1770519293442,0.91059566,2086.1,2085.2,0.92719825]
[1770519294357,0.91059566,2086.1,2085.3,1.19886826]
[1770519295376,0.91059566,2085.8,2085.3,1.19886826]
[1770519296266,0.91059566,2085.8,2085.2,1.19888641]
[1770519296997,0.91059566,2085.8,2085.0,1.19901819]
[1770519296998,0.91059566,2085.7,2085.0,1.19901819]
[1770519297271,0.91059566,2085.7,2085.0,1.19901236]
[1770519297757,0.9510343,2085.6,2085.0,1.19901236]
[1770519298270,0.9510343,2085.6,2085.0,1.19900081]
[1770519299284,0.91059566,2085.5,2084.7,0.001]
[1770519299568,0.9510343,2085.3,2084.7,0.001]
[1770519299775,0.9510343,2085.3,2084.9,0.001]
[1770519300138,0.91059566,2085.3,2084.9,0.001]
[1770519300365,2.10926566,2085.7,2084.9,0.001]
[1770519300541,0.9510343,2085.6,2084.9,0.001]
[1770519301789,0.002,2085.9,2084.9,0.92819825]
[1770519303366,0.002,2085.9,2085.1,0.92719825]
[1770519303873,0.002,2086.2,2085.1,0.92719825]
[1770519304185,0.002,2086.2,2085.3,0.92719825]
[1770519305696,0.002,2086.2,2085.5,0.9202683]
[1770519306386,0.002,2087.0,2085.7,0.9202683]
[1770519306560,0.002,2087.0,2086.0,0.9202683]
[1770519307790,0.002,2087.0,2086.2,0.9202683]
[1770519309786,0.002,2087.0,2086.4,0.9202683]
[1770519311191,0.33907753,2087.6,2086.4,0.9202683]
[1770519311793,0.33907753,2087.6,2086.6,0.9202683]
[1770519313393,0.002,2086.8,2086.6,0.9202683]
[1770519313704,0.33907753,2087.6,2086.6,0.9202683]
[1770519313862,0.002,2087.0,2086.8,0.90317248]
[1770519314198,0.98198638,2088.0,2086.8,0.90317248]
[1770519314397,0.002,2087.9,2086.8,0.90317248]
[1770519314702,0.98398638,2087.9,2086.8,0.90317248]
[1770519315199,0.002,2087.9,2086.8,0.90317248]
[1770519316007,0.002,2087.9,2087.0,0.90317248]
[1770519317266,0.98398638,2087.9,2086.9,2.10112159]
[1770519318484,0.98398638,2087.9,2087.1,1.19783431]
[1770519318688,0.98398638,2087.9,2087.2,0.04791106]
[1770519319396,0.002,2087.9,2087.2,0.04791106]
[1770519320601,0.002,2087.9,2087.3,1.19771954]
[1770519321105,0.98398638,2087.9,2087.3,1.19771954]
[1770519322004,0.98398638,2087.9,2087.2,1.19773844]
[1770519323101,0.98198638,2087.8,2087.1,1.1978017]
[1770519323397,1.02242502,2087.8,2087.1,1.19783072]
[1770519324590,0.98198638,2087.8,2087.0,1.19785933]
[1770519324790,0.98198638,2087.8,2086.9,1.19791437]
[1770519325108,1.23985718,2087.9,2086.8,4.79194089]
[1770519325109,0.98198638,2087.7,2087.1,1.19782335]
[1770519325279,0.002,2087.9,2087.1,1.19782335]
[1770519325280,0.98398638,2087.9,2087.1,1.19782335]
[1770519325684,2.18137721,2087.9,2087.1,1.19782335]
[1770519325879,0.002,2087.6,2087.1,1.19782335]
[1770519326098,0.98398638,2087.6,2087.0,1.19785052]
[1770519326970,0.002,2087.6,2087.0,1.19785052]
[1770519327174,0.002,2087.6,2086.9,4.79177252]
[1770519327907,0.002,2087.6,2086.8,5.69473932]
[1770519329480,0.98398638,2087.6,2086.8,4.79156684]
[1770519329680,0.98398638,2087.6,2086.8,1.19800651]
[1770519330982,0.98398638,2087.6,2086.8,1.19800173]
[1770519331479,0.98198638,2087.5,2086.5,4.79268236]
[1770519334902,0.98198638,2087.4,2086.5,4.79268236]
[1770519337020,0.93233696,2087.2,2086.5,1.19817876]
[1770519337218,0.93233696,2087.2,2086.4,1.1982256]
[1770519337509,0.93233696,2087.2,2086.7,0.001]
[1770519339094,0.93233696,2087.1,2086.7,0.001]
[1770519339326,0.93233696,2087.4,2086.7,0.001]
[1770519339536,0.93233696,2087.3,2086.7,0.001]
[1770519340533,0.93233696,2087.5,2086.7,0.99022691]
[1770519341031,0.93233696,2087.5,2086.8,1.19800651]
[1770519341525,0.002,2087.6,2086.8,2.18723342]
[1770519345430,0.002,2087.6,2086.9,0.98922691]
[1770519347426,0.002,2087.6,2087.0,2.18711862]
[1770519348102,0.002,2087.6,2087.1,0.98922691]
[1770519348306,0.002,2087.8,2087.1,0.98922691]
[1770519349625,0.002,2087.8,2087.2,1.19777692]
[1770519349833,0.93433696,2087.8,2087.2,1.19777692]
[1770519350634,0.002,2087.6,2087.2,1.19777692]
[1770519351933,0.002,2087.6,2087.0,4.79148296]
[1770519352814,0.93433696,2087.6,2086.9,1.19794313]
[1770519354026,0.93433696,2087.6,2086.8,4.7918846]
[1770519356606,0.93433696,2087.6,2086.8,1.19800651]
[1770519362637,0.93433696,2087.6,2086.8,2.18723342]
[1770519363436,0.93433696,2087.6,2087.0,0.001]
[1770519364512,0.002,2087.6,2087.0,0.001]
[1770519364721,0.002,2087.6,2087.0,0.99022691]
[1770519366013,0.002,2087.6,2087.2,0.99688244]
[1770519366335,0.002,2087.8,2087.3,0.99688244]
[1770519368249,1e-08,2088.1,2087.5,0.99688244]
[1770519369246,1e-08,2088.1,2087.4,1.19766216]
[1770519369247,0.98308313,2088.1,2087.4,1.19766216]
[1770519370250,0.98308313,2088.1,2087.2,4.79064865]
[1770519370420,1e-08,2088.1,2087.3,0.99688244]
[1770519370620,0.98308312,2088.4,2087.3,0.99688244]
[1770519371026,0.98308312,2088.4,2087.2,4.79064865]
[1770519371716,0.98308312,2088.4,2087.1,1.19779482]
[1770519372232,0.9634331,2088.1,2087.1,1.19779482]
[1770519372430,0.9634331,2087.9,2087.0,4.79247498]
[1770519372640,0.9634331,2088.1,2087.1,0.99800381]
[1770519374034,0.9634331,2088.4,2087.1,0.99800381]
[1770519374421,0.9634331,2088.4,2087.3,0.99800381]
[1770519375148,0.9634331,2088.3,2087.3,0.99800381]
[1770519375937,0.002,2088.0,2087.3,0.99800381]
[1770519376646,0.002,2088.0,2087.4,2.19566597]
[1770519376841,0.002,2088.2,2087.5,0.99800381]
[1770519377864,0.32799283,2088.5,2087.6,0.99800381]
[1770519378161,0.002,2088.7,2087.6,0.99800381]
[1770519378756,0.002,2088.7,2087.8,0.99800381]
[1770519379258,0.9654331,2088.7,2087.8,0.99800381]
[1770519379828,0.002,2088.7,2087.8,0.99800381]
[1770519380359,0.002,2089.1,2087.9,0.99800381]
[1770519380562,0.002,2089.1,2087.7,6.61789322]
[1770519380563,0.002,2089.1,2088.1,0.99800381]
[1770519381067,0.002,2089.1,2088.3,0.99800381]
[1770519381654,0.9654331,2089.1,2088.3,0.99800381]
[1770519382174,0.002,2089.1,2088.3,0.99800381]
[1770519382962,0.002,2089.1,2088.4,1.19708868]
[1770519383158,0.9654331,2089.1,2088.4,1.19708868]
[1770519385066,0.9654331,2089.1,2088.3,4.78835472]
[1770519388141,0.9634331,2089.0,2088.2,1.19716533]
[1770519388641,0.9634331,2088.8,2088.0,1.19830318]
[1770519389254,0.9634331,2088.8,2088.0,0.001]
[1770519389560,0.9634331,2088.6,2088.0,0.001]
[1770519390266,1.00387174,2088.6,2088.0,0.001]
[1770519391443,0.9634331,2088.4,2088.0,0.001]
[1770519399762,0.9634331,2088.4,2087.8,0.001]
[1770519401862,2.15180763,2088.3,2088.2,0.001]
[1770519402063,0.95466163,2088.3,2088.2,0.001]
[1770519402741,0.95466163,2088.3,2088.0,0.001]
[1770519405944,1.19717506,2088.3,2088.0,0.001]
[1770519406183,0.95466163,2088.2,2088.0,0.001]
[1770519410378,0.95466163,2088.4,2088.0,0.001]
[1770519411754,2.15177352,2088.4,2088.0,0.001]
[1770519412265,0.95466163,2088.4,2088.0,0.001]
[1770519414888,0.95466163,2088.4,2088.2,0.001]
[1770519418060,1.19903588,2088.5,2088.2,0.001]
[1770519418873,2.15369751,2088.5,2088.2,0.001]
[1770519420692,1.19903588,2088.5,2088.2,0.001]
[1770519420902,1.19903588,2088.5,2088.0,0.001]
[1770519420903,0.95466163,2088.3,2088.0,0.001]
[1770519421495,0.95466163,2088.1,2087.8,0.001]
[1770519422379,0.95466163,2088.0,2087.8,0.001]
[1770519422580,5.74306521,2088.4,2087.8,0.001]
[1770519422782,0.95466163,2088.3,2087.8,0.001]
[1770519423493,1.19708868,2088.4,2087.8,0.001]
[1770519423697,2.15372443,2088.5,2087.8,0.001]
[1770519423900,1.1990628,2088.5,2087.8,0.93425369]
[1770519424199,0.95466163,2088.4,2087.8,0.001]
[1770519424400,2.15177055,2088.4,2087.8,0.001]
[1770519424704,2.15175643,2088.4,2087.8,0.001]
[1770519424872,0.95466163,2088.4,2087.8,0.001]
[1770519425197,0.002,2088.5,2087.8,0.93425369]
[1770519426672,0.002,2088.5,2087.9,2.1733948]
[1770519427282,0.002,2088.5,2088.0,0.001]
[1770519427480,0.002,2088.2,2088.0,0.001]
[1770519429984,0.002,2088.2,2088.0,0.97701945]
[1770519430793,0.002,2088.2,2088.0,0.001]
[1770519432153,0.9270417,2088.2,2087.8,0.001]
[1770519432375,0.9270417,2088.2,2087.8,0.002]
[1770519433497,0.002,2088.2,2087.8,0.002]
[1770519435978,0.002,2088.2,2087.8,0.91588658]
[1770519438682,0.002,2088.2,2087.9,1.19737535]
[1770519439186,0.002,2088.2,2087.8,2.1132806]
[1770519441182,0.002,2088.2,2088.0,0.001]
[1770519442186,0.99815052,2088.2,2088.0,0.001]
[1770519442911,2.19540248,2088.2,2088.0,0.001]
[1770519443113,0.99615052,2088.1,2088.0,0.001]
[1770519443911,0.99615052,2088.1,2087.2,0.001]
[1770519444109,0.99615052,2087.9,2087.4,0.001]
[1770519444911,1.03658916,2087.9,2087.4,0.001]
[1770519445114,0.99615052,2087.7,2087.4,0.001]
[1770519448634,0.99615052,2087.9,2087.4,0.001]
[1770519448792,1.19734808,2088.0,2087.4,0.91488658]
[1770519449497,2.1934986,2088.0,2087.4,0.001]
[1770519451718,0.99615052,2087.9,2087.4,0.001]
[1770519451941,0.99615052,2087.9,2087.5,0.001]
[1770519452935,0.99615052,2087.9,2087.6,0.001]
[1770519453323,0.99615052,2087.9,2087.7,0.001]
[1770519453520,0.99615052,2087.9,2087.4,0.001]
[1770519453822,0.99815052,2088.0,2087.4,0.001]
[1770519455829,0.9299401,2087.8,2087.4,0.001]
[1770519457434,2.12930214,2088.0,2087.4,0.001]
[1770519458640,0.002,2088.0,2087.4,0.94540502]
[1770519461142,0.002,2088.0,2087.5,1.19760479]
[1770519461436,0.002,2088.0,2087.4,2.14302522]
[1770519463532,0.9319401,2088.0,2087.4,1.1986202]
[1770519465125,0.002,2088.0,2087.6,0.94540502]
[1770519465317,0.002,2087.8,2087.6,0.94540502]
[1770519467213,0.002,2087.8,2087.7,1.19749006]
[1770519467850,0.002,2087.8,2087.6,1.19850885]
[1770519468624,0.002,2087.8,2087.6,0.001]
[1770519473351,0.002,2087.8,2087.6,0.94540502]
[1770519473540,0.002,2088.2,2087.8,0.94440502]
[1770519473943,0.002,2088.2,2087.7,1.19749006]
[1770519474122,0.9319401,2088.2,2087.6,1.19851017]
[1770519474936,0.9319401,2088.2,2087.4,0.001]
[1770519474937,0.9299401,2088.0,2087.4,0.001]
[1770519476025,0.9299401,2087.9,2087.4,0.001]
[1770519476224,0.002,2088.2,2087.4,0.94540502]
[1770519477459,0.002,2088.2,2087.8,0.001]
[1770519477460,2.12916951,2088.2,2087.8,0.001]
[1770519477668,0.002,2088.0,2087.8,0.001]
[1770519488464,0.002,2088.2,2087.8,0.91580294]
[1770519489688,0.002,2088.0,2087.8,0.91580294]
[1770519490199,0.002,2088.0,2087.8,0.001]
[1770519490599,0.002,2088.0,2087.8,1.19843266]
[1770519491684,0.002,2088.0,2087.8,0.001]
[1770519494375,0.002,2088.4,2088.0,0.99126323]
[1770519495491,0.002,2088.4,2087.8,0.99226323]
[1770519496194,0.95745845,2088.4,2087.8,0.001]
[1770519496396,0.95545845,2088.3,2087.5,0.001]
[1770519496592,0.95545845,2088.3,2087.5,1.19960101]
[1770519497075,0.95745845,2088.4,2087.8,4.1351534]
[1770519497275,0.002,2088.4,2088.0,4.1351534]
[1770519497481,0.002,2088.4,2088.0,5.12641663]
[1770519497680,0.002,2088.7,2088.1,0.99226323]
[1770519498398,0.002,2088.7,2088.2,1.19720333]
[1770519498593,0.002,2088.7,2088.3,0.001]
[1770519498903,0.95745845,2088.9,2088.4,5.12641663]
[1770519498904,0.002,2088.9,2088.4,5.12641663]
[1770519499405,0.002,2088.9,2088.5,0.001]
[1770519500374,0.002,2088.9,2088.5,1.19803136]
[1770519500707,0.002,2088.9,2088.6,0.99126323]
[1770519501789,0.002,2088.7,2088.6,0.99126323]
[1770519502000,0.002,2088.9,2088.6,0.99126323]
[1770519502210,0.002,2088.9,2088.7,0.001]
[1770519502379,0.002,2088.9,2088.7,1.19791674]
[1770519504109,0.002,2088.9,2088.7,0.001]
[1770519507609,0.95745845,2088.9,2088.4,1.19704595]
[1770519507795,0.95745845,2088.9,2088.3,1.19710571]
[1770519507990,0.95745845,2088.9,2088.4,1.19708679]
[1770519508610,0.002,2088.9,2088.6,1.19696735]
[1770519509013,0.002,2088.9,2088.7,0.001]
[1770519510514,0.002,2089.1,2088.7,0.99226323]
[1770519511994,0.002,2089.1,2088.8,1.19685944]
[1770519513452,0.002,2088.9,2088.8,1.19685944]
[1770519515634,0.002,2088.9,2088.8,1.19785944]
[1770519519442,0.002,2089.1,2088.8,1.19785944]
[1770519520236,0.002,2089.1,2088.8,1.19685944]
[1770519520531,0.92612618,2089.6,2088.9,4.13171199]
[1770519521039,0.92412618,2089.5,2088.9,0.001]
[1770519522532,0.92412618,2089.4,2088.7,0.001]
[1770519522743,0.92412618,2089.4,2088.7,1.19891267]
[1770519523048,0.92412618,2089.4,2088.7,1.19891318]
[1770519523916,0.92412618,2089.4,2088.7,0.002]
[1770519524619,0.92412618,2089.2,2088.7,0.002]
[1770519526034,0.92412618,2089.2,2089.0,0.001]
[1770519528844,0.92412618,2089.2,2089.0,0.002]
[1770519529050,0.92612618,2089.3,2089.0,0.002]
[1770519529342,1.19858634,2089.3,2089.0,0.002]
[1770519529549,0.92412618,2089.2,2089.0,0.002]
[1770519529847,0.92412618,2089.2,2088.8,0.001]
[1770519531332,0.92412618,2089.1,2088.8,0.001]
[1770519537425,0.92612618,2089.3,2088.8,0.001]
[1770519537825,0.92412618,2089.2,2088.8,0.001]
[1770519539946,0.92412618,2089.1,2089.0,0.001]
[1770519540135,2.12274262,2089.3,2089.0,0.001]
[1770519540335,0.92412618,2089.2,2089.0,0.001]
[1770519540534,0.92612618,2089.2,2089.0,0.001]
[1770519542929,0.002,2089.5,2089.0,5.05139085]
[1770519543156,0.002,2089.5,2089.1,0.91967886]
[1770519544736,0.002,2089.5,2089.1,2.11633919]
[1770519545542,0.002,2089.6,2089.2,4.13071199]
[1770519546639,0.002,2089.6,2089.3,1.19657301]
[1770519547359,0.002,2089.6,2089.1,1.19663864]
[1770519547739,0.002,2089.6,2089.2,6.25808532]
[1770519549458,0.93965451,2089.5,2089.0,0.001]
[1770519551260,0.93965451,2089.4,2089.0,0.001]
[1770519553449,0.93965451,2089.4,2089.2,0.001]
[1770519553964,0.99739675,2089.3,2089.2,0.001]
[1770519554161,0.99939675,2089.3,2089.2,0.001]
[1770519554963,0.002,2089.3,2089.2,0.001]
[1770519556061,0.002,2089.3,2088.8,0.001]
[1770519556248,0.99939675,2089.3,2088.8,0.001]
[1770519557237,0.99939675,2089.3,2088.8,1.19784301]
[1770519557438,0.99939675,2089.3,2088.8,0.001]
[1770519558540,0.002,2089.3,2088.8,0.001]
[1770519559468,0.002,2089.3,2088.8,0.97829622]
[1770519560270,0.002,2089.3,2088.9,2.17409836]
[1770519562469,0.002,2089.3,2088.8,0.001]
[1770519562470,0.99939675,2089.3,2088.8,0.001]
[1770519564155,0.002,2089.3,2088.8,0.001]
[1770519564360,0.002,2089.3,2088.8,0.97829622]
[1770519564556,0.002,2089.3,2088.8,2.17511203]
[1770519566380,0.002,2089.3,2088.9,0.97729622]
[1770519566675,0.002,2089.3,2088.9,2.17405236]
[1770519566882,0.002,2089.3,2089.0,0.001]
[1770519567063,0.002,2089.1,2089.0,0.001]
[1770519571663,0.002,2089.3,2089.0,0.001]
[1770519575964,0.002,2089.3,2089.0,0.91630503]
[1770519578192,0.002,2089.3,2089.1,1.19668756]
[1770519582807,0.002,2089.3,2089.0,1.19774485]
[1770519585106,0.002,2089.3,2089.0,0.001]
[1770519588207,0.002,2089.6,2089.2,5.04655292]
[1770519588501,0.33235346,2089.9,2089.5,5.04655292]
[1770519588700,0.33235346,2089.9,2089.2,4.13124789]
[1770519588902,0.33235346,2089.9,2089.5,0.91530503]
[1770519589095,1e-08,2089.9,2089.6,1.19640122]
[1770519590184,1e-08,2089.9,2089.5,1.19642713]
[1770519590705,0.002,2090.2,2089.7,4.13124789]
[1770519590910,0.002,2090.4,2089.5,1.19645297]
[1770519590911,0.002,2090.4,2090.2,0.91530503]
[1770519591079,0.91337774,2090.8,2090.2,1.19605779]
[1770519591281,0.24952101,2092.0,2090.6,4.13124789]
[1770519591515,0.91337774,2091.7,2090.5,4.13124789]
[1770519591681,8.91199509,2091.8,2090.3,5.04655292]
[1770519591682,0.002,2090.8,2090.3,5.04655292]
[1770519591881,0.91337774,2091.1,2090.2,1.19605779]
[1770519594511,0.91337774,2091.0,2090.2,1.19605779]
[1770519595816,0.95381638,2091.0,2090.1,1.19611214]
[1770519596016,0.91337774,2091.3,2090.3,4.13124789]
[1770519596210,0.91337774,2091.3,2090.3,5.04655292]
[1770519596513,0.91337774,2091.1,2090.4,1.19594336]
[1770519596714,0.91337774,2091.1,2090.3,1.19598613]
[1770519597089,0.91337774,2091.1,2090.3,5.32723402]
[1770519597329,0.91337774,2091.3,2090.5,4.13124789]
[1770519597719,2.10871756,2091.5,2090.7,5.04655292]
[1770519597908,0.91337774,2091.4,2090.7,0.91530503]
[1770519598305,0.91337774,2091.4,2090.7,2.11103217]
[1770519600317,2.10864726,2091.6,2090.7,2.11103217]
[1770519600818,0.91337774,2091.5,2090.7,2.11103217]
[1770519601001,0.91337774,2091.5,2090.8,0.91530503]
[1770519601208,2.10861838,2091.7,2090.9,0.91530503]
[1770519601390,0.91337774,2091.7,2090.9,0.91530503]
[1770519601594,0.91337774,2091.8,2091.1,0.91530503]
[1770519602817,0.91337774,2092.0,2091.1,2.11081572]
[1770519603021,0.91337774,2091.8,2090.9,1.19562547]
[1770519603221,0.91337774,2091.5,2090.7,1.19574223]
[1770519603604,0.91537774,2091.5,2090.7,1.19574223]
[1770519603792,0.91537774,2091.5,2090.8,1.19570914]
[1770519604393,0.91537774,2091.5,2090.7,1.19573364]
[1770519604836,2.10874926,2091.4,2090.5,9.83000953]
[1770519604994,2.10874926,2091.4,2090.6,1.19582894]
[1770519605195,2.10874926,2091.4,2090.6,2.11113397]
[1770519605596,0.91337774,2091.4,2090.7,4.13124789]
[1770519606209,0.91337774,2091.4,2090.7,5.06574782]
[1770519606822,1.19734895,2091.5,2090.6,1.19582894]
[1770519606823,0.002,2091.5,2090.9,6.26140519]
[1770519608001,0.002,2091.5,2090.9,5.06574782]
[1770519608828,0.002,2091.5,2091.0,0.93449993]
[1770519610499,0.9073499,2092.2,2091.4,0.93449993]
[1770519610696,2.10226575,2092.2,2091.4,5.06574782]
[1770519610906,0.9073499,2092.2,2091.5,1.19531436]
[1770519611407,0.9073499,2092.2,2091.5,2.12981429]
[1770519612022,0.9073499,2092.4,2091.6,5.06574782]
[1770519612351,1.19477551,2092.5,2091.7,0.93449993]
[1770519612754,2.10212541,2092.5,2091.7,0.93449993]
[1770519612907,0.9073499,2092.4,2091.6,1.19520526]
[1770519613248,0.9073499,2092.2,2091.3,1.19538243]
[1770519613605,0.9073499,2092.2,2091.4,1.19536883]
[1770519614701,0.97148905,2092.4,2091.6,2.14840103]
[1770519614900,1.19485733,2092.3,2091.6,2.14840103]
[1770519615628,2.16631921,2092.4,2091.6,2.14840103]
[1770519615936,0.002,2092.3,2091.6,2.14840103]
[1770519616144,0.002,2092.3,2091.7,0.95317215]
[1770519616921,0.002,2092.3,2091.7,2.14833863]
[1770519617236,0.002,2092.3,2091.8,0.95317215]
[1770519618446,1.19675768,2092.5,2091.8,0.95317215]
[1770519618447,0.002,2092.5,2091.8,0.95317215]
[1770519618944,0.002,2092.5,2091.9,2.14825795]
[1770519619142,0.97148905,2093.0,2092.0,0.95317215]
[1770519621260,4.7771482,2093.3,2092.2,0.95317215]
[1770519621261,2.16581349,2093.3,2092.2,0.95317215]
[1770519622245,1.19623319,2093.4,2092.2,0.95317215]
[1770519622432,0.97148905,2093.3,2092.2,0.95317215]
[1770519623542,1.19434358,2093.2,2092.4,0.95317215]
[1770519623924,2.16583263,2093.2,2092.4,0.95317215]
[1770519624322,0.97148905,2093.1,2092.2,2.14806193]
[1770519624836,0.97148905,2093.1,2091.9,1.19505193]
[1770519625045,0.97148905,2093.1,2092.0,1.19502678]
[1770519625430,1.19445771,2093.0,2092.0,1.19502678]
[1770519625649,0.97148905,2092.9,2091.9,2.14823551]
[1770519625952,1.01192769,2092.9,2091.9,2.14823551]
[1770519626152,1.01192769,2092.9,2091.8,1.19510045]
[1770519626523,1.01192769,2092.9,2091.9,1.19508437]
[1770519626753,1.01192769,2092.9,2091.7,2.14833352]
[1770519626919,1.01192769,2092.9,2091.7,2.1483315]
[1770519627321,1.01192769,2092.9,2091.8,1.19513974]
[1770519627741,0.97148905,2092.7,2091.7,0.95317215]
[1770519628333,0.97148905,2092.7,2091.5,0.95317215]
[1770519628535,0.97148905,2092.5,2091.5,0.95317215]
[1770519628757,0.97148905,2092.5,2092.0,0.001]
[1770519629063,0.04043864,2092.6,2092.0,0.001]
[1770519629064,0.97148905,2092.7,2092.0,0.001]
[1770519629355,0.97148905,2092.5,2092.0,0.001]
[1770519629863,1.19657186,2092.8,2092.0,0.001]
[1770519629864,1.19467999,2092.7,2092.0,0.001]
[1770519630156,2.16616904,2092.7,2092.0,0.001]
[1770519632743,1.19467999,2092.7,2092.0,0.95417215]
[1770519634362,4.78050056,2092.8,2092.0,0.95417215]
[1770519634565,0.04043864,2092.6,2092.0,0.001]
[1770519634880,0.97148905,2092.5,2092.0,0.001]
[1770519636244,1.19480022,2092.4,2091.8,0.001]
[1770519636463,0.93649869,2092.3,2091.8,0.001]
[1770519636965,1.19480022,2092.4,2091.8,0.001]
[1770519637762,1.19480022,2092.4,2091.8,0.93632564]
[1770519639667,4.77920091,2092.5,2091.8,0.93632564]
[1770519640846,4.77920091,2092.5,2091.8,0.001]